[Event "Lietuvos BM10-BM18"]
[Site "Vilnius"]
[Date "2021.06.05"]
[Round "6.10"]
[White "Scekaciov, Rostislav"]
[Black "Liandzbergas, Mykolas"]
[Result "1-0"]
[WhiteElo "1515"]
[BlackElo "1430"]
[PlyCount "59"]
[EventDate "2021.??.??"]
[TimeControl "90+30"]
[WhiteClock "0:59:59"]
[BlackClock "1:11:23"]

1. d4 {[%emt 0:02:02]} e6 {[%emt 0:00:10]} 2. Nf3 {[%emt 0:00:09]} d5 {[%emt 0:
00:06]} 3. g3 {[%emt 0:00:44]} Nf6 {[%emt 0:00:14]} 4. Bg2 {[%emt 0:00:12]} a6
{[%emt 0:00:56]} 5. O-O {[%emt 0:00:11]} c5 {[%emt 0:00:11]} 6. dxc5 {[%emt 0:
04:49]} Bxc5 {[%emt 0:00:15]} 7. c4 {[%emt 0:00:11]} O-O {[%emt 0:00:18]} 8.
Bg5 {[%emt 0:02:14]} h6 {[%emt 0:03:56]} 9. Bd2 {[%emt 0:00:56]} Nc6 {[%emt 0:
01:11]} 10. cxd5 {[%emt 0:00:18]} Nxd5 {[%emt 0:00:21]} 11. Nc3 {[%emt 0:00:20]
} b5 {[%emt 0:07:42]} 12. Nxd5 {[%emt 0:02:52]} exd5 {[%emt 0:01:11]} 13. Rc1 {
[%emt 0:00:40]} Qb6 {[%emt 0:00:32]} 14. Qc2 {[%emt 0:00:40]} Bxf2+ {[%emt 0:
04:53]} 15. Rxf2 {[%emt 0:00:20]} Bb7 {[%emt 0:00:19]} 16. Qc5 {[%emt 0:01:09]}
Qd8 {[%emt 0:00:18]} 17. Qc2 {[%emt 0:02:19]} Qb6 {[%emt 0:00:27]} 18. Qd3 {
[%emt 0:01:27]} Rfe8 {[%emt 0:00:57]} 19. Rcf1 {[%emt 0:04:11]} Rad8 {[%emt 0:
01:58]} 20. Kh1 {[%emt 0:00:57]} Rd7 {[%emt 0:01:33]} 21. a3 {[%emt 0:02:33]}
a5 {[%emt 0:02:09]} 22. Bc3 {[%emt 0:12:16]} b4 {[%emt 0:00:26]} 23. axb4 {
[%emt 0:00:24]} axb4 {[%emt 0:00:04]} 24. Bd4 {[%emt 0:00:26]} Qa5 {[%emt 0:00:
13]} 25. Qf5 {[%emt 0:00:45]} Rde7 {[%emt 0:00:15]} 26. Qg4 {[%emt 0:00:56]} g6
{[%emt 0:01:26]} 27. Qh4 {[%emt 0:00:41]} Rxe2 {[%emt 0:01:38]} 28. Rxe2 {
[%emt 0:00:10]} Rxe2 {[%emt 0:00:05]} 29. Qf6 {[%emt 0:00:08]} Nxd4 {[%emt 0:
00:07]} 30. Nxd4 {[%emt 0:00:15]} 1-0

[Event "Lietuvos BM10-BM18"]
[Site "Vilnius"]
[Date "2021.06.05"]
[Round "6.11"]
[White "Pidluznij, Gleb"]
[Black "Gavenavicius, Karolis"]
[Result "1-0"]
[WhiteElo "2016"]
[BlackElo "1168"]
[PlyCount "63"]
[EventDate "2021.??.??"]
[TimeControl "90+30"]
[WhiteClock "0:03:27"]
[BlackClock "0:05:00"]

1. e4 {[%emt 0:00:06]} c5 {[%emt 0:00:10]} 2. Nf3 {[%emt 0:00:36]} e6 {[%emt 0:
00:21]} 3. g3 {[%emt 0:00:07]} d5 {[%emt 0:00:29]} 4. exd5 {[%emt 0:00:16]}
exd5 {[%emt 0:00:10]} 5. Bg2 {[%emt 0:01:30]} Nf6 {[%emt 0:01:44]} 6. O-O {
[%emt 0:00:35]} Nc6 {[%emt 0:04:25]} 7. d4 {[%emt 0:00:53]} c4 {[%emt 0:06:24]}
8. b3 {[%emt 0:00:35]} cxb3 {[%emt 0:10:28]} 9. axb3 {[%emt 0:00:10]} Be7 {
[%emt 0:00:56]} 10. c4 {[%emt 0:02:29]} h6 {[%emt 0:05:15]} 11. Ne5 {[%emt 0:
05:32]} Be6 {[%emt 0:03:33]} 12. Ba3 {[%emt 0:04:03]} O-O {[%emt 0:05:12]} 13.
Nxc6 {[%emt 0:16:36]} bxc6 {[%emt 0:00:19]} 14. Bxe7 {[%emt 0:00:25]} Qxe7 {
[%emt 0:00:11]} 15. c5 {[%emt 0:01:06]} Qd7 {[%emt 0:09:49]} 16. Ra4 {[%emt 0:
13:43]} Bh3 {[%emt 0:10:47]} 17. Nc3 {[%emt 0:05:48]} Bxg2 {[%emt 0:01:56]} 18.
Kxg2 {[%emt 0:00:23]} Rfb8 {[%emt 0:03:07]} 19. b4 {[%emt 0:04:13]} Rb7 {[%emt
0:02:22]} 20. Qd3 {[%emt 0:04:53]} Rab8 {[%emt 0:06:02]} 21. Rb1 {[%emt 0:02:
37]} Ne8 {[%emt 0:04:14]} 22. b5 {[%emt 0:06:52]} cxb5 {[%emt 0:01:03]} 23. Ra6
{[%emt 0:00:16]} Nc7 {[%emt 0:04:03]} 24. Rd6 {[%emt 0:00:11]} Qe8 {[%emt 0:08:
53]} 25. Nxd5 {[%emt 0:01:37]} Nxd5 {[%emt 0:00:23]} 26. Rxd5 {[%emt 0:00:03]}
b4 {[%emt 0:00:23]} 27. Qf3 {[%emt 0:09:43]} Rc7 {[%emt 0:04:04]} 28. Rd6 {
[%emt 0:04:25]} a5 {[%emt 0:00:43]} 29. Rb6 {[%emt 0:08:33]} Rxb6 {[%emt 0:01:
19]} 30. cxb6 {[%emt 0:00:02]} Rc6 {[%emt 0:00:40]} 31. Re1 {[%emt 0:01:49]}
Qc8 {[%emt 0:01:31]} 32. Re7 {[%emt 0:02:57]} 1-0

[Event "Lietuvos BM10-BM18"]
[Site "Vilnius"]
[Date "2021.06.05"]
[Round "6.12"]
[White "Uckuronis, Aleksandras"]
[Black "Milius, Ignas"]
[Result "1/2-1/2"]
[WhiteElo "1295"]
[BlackElo "1331"]
[PlyCount "47"]
[EventDate "2021.??.??"]
[TimeControl "90+30"]
[WhiteClock "1:19:53"]
[BlackClock "1:01:48"]

1. Nf3 {[%emt 0:00:03]} d5 {[%emt 0:00:51]} 2. d4 {[%emt 0:00:06]} Bf5 {[%emt
0:00:52]} 3. Bf4 {[%emt 0:00:09]} e6 {[%emt 0:00:52]} 4. e3 {[%emt 0:00:11]} c5
{[%emt 0:01:17]} 5. c3 {[%emt 0:00:21]} Nc6 {[%emt 0:00:56]} 6. Bd3 {[%emt 0:
00:16]} Bg6 {[%emt 0:00:24]} 7. Bxg6 {[%emt 0:01:04]} hxg6 {[%emt 0:00:13]} 8.
h3 {[%emt 0:00:36]} cxd4 {[%emt 0:01:11]} 9. exd4 {[%emt 0:00:05]} Bd6 {[%emt
0:01:19]} 10. Bxd6 {[%emt 0:00:47]} Qxd6 {[%emt 0:00:09]} 11. Qe2 {[%emt 0:00:
13]} Nf6 {[%emt 0:01:48]} 12. Nbd2 {[%emt 0:00:29]} Nh5 {[%emt 0:06:17]} 13.
Qb5 {[%emt 0:02:40]} O-O {[%emt 0:05:43]} 14. O-O {[%emt 0:03:25]} a6 {[%emt 0:
01:11]} 15. Qe2 {[%emt 0:01:40]} b5 {[%emt 0:02:21]} 16. Qe3 {[%emt 0:00:32]}
Rfe8 {[%emt 0:02:41]} 17. Ne5 {[%emt 0:00:47]} Nf6 {[%emt 0:03:26]} 18. Rfe1 {
[%emt 0:00:52]} Nd7 {[%emt 0:02:11]} 19. Nxc6 {[%emt 0:01:42]} Qxc6 {[%emt 0:
00:10]} 20. Qf4 {[%emt 0:00:47]} Nb6 {[%emt 0:02:01]} 21. Nf3 {[%emt 0:01:13]}
Nc4 {[%emt 0:02:05]} 22. Ne5 {[%emt 0:01:49]} Qc7 {[%emt 0:01:40]} 23. Rab1 {
[%emt 0:02:00]} Nxe5 {[%emt 0:00:52]} 24. Ra1 {[%emt 0:00:49]} 1/2-1/2

[Event "Lietuvos BM10-BM18"]
[Site "Vilnius"]
[Date "2021.06.05"]
[Round "6.13"]
[White "Dudnikas, Motiejus"]
[Black "Rudzkis, Vilius"]
[Result "1/2-1/2"]
[WhiteElo "1323"]
[BlackElo "1811"]
[PlyCount "58"]
[EventDate "2021.??.??"]
[TimeControl "90+30"]
[WhiteClock "0:08:48"]
[BlackClock "0:26:05"]

1. d4 {[%emt 0:00:48]} Nf6 {[%emt 0:00:42]} 2. Bg5 {[%emt 0:00:07]} d5 {[%emt
0:00:07]} 3. e3 {[%emt 0:00:22]} Nbd7 {[%emt 0:00:08]} 4. Bd3 {[%emt 0:00:16]}
c5 {[%emt 0:01:06]} 5. c3 {[%emt 0:00:06]} g6 {[%emt 0:00:15]} 6. Nd2 {[%emt 0:
01:34]} Bg7 {[%emt 0:00:16]} 7. f4 {[%emt 0:02:05]} a6 {[%emt 0:02:45]} 8. Ngf3
{[%emt 0:00:46]} b5 {[%emt 0:00:29]} 9. Ne5 {[%emt 0:00:29]} Bb7 {[%emt 0:03:
14]} 10. O-O {[%emt 0:00:40]} O-O {[%emt 0:02:43]} 11. Qe1 {[%emt 0:06:48]} Qc7
{[%emt 0:12:15]} 12. Ndf3 {[%emt 0:01:43]} e6 {[%emt 0:00:39]} 13. Qh4 {[%emt
0:06:51]} c4 {[%emt 0:03:51]} 14. Be2 {[%emt 0:01:07]} Ne4 {[%emt 0:00:20]} 15.
Bh6 {[%emt 0:21:33]} Qd8 {[%emt 0:13:26]} 16. Ng5 {[%emt 0:09:25]} Nxg5 {[%emt
0:02:44]} 17. fxg5 {[%emt 0:00:16]} Bxe5 {[%emt 0:16:13]} 18. Bxf8 {[%emt 0:05:
29]} Qxf8 {[%emt 0:00:49]} 19. dxe5 {[%emt 0:00:08]} Nxe5 {[%emt 0:00:14]} 20.
Qf4 {[%emt 0:10:31]} Qg7 {[%emt 0:00:47]} 21. Rf2 {[%emt 0:02:14]} Bc6 {[%emt
0:01:28]} 22. Raf1 {[%emt 0:01:01]} a5 {[%emt 0:00:41]} 23. Qd4 {[%emt 0:02:26]
} Be8 {[%emt 0:01:13]} 24. Qb6 {[%emt 0:10:55]} a4 {[%emt 0:04:50]} 25. Qb7 {
[%emt 0:02:11]} Bc6 {[%emt 0:00:48]} 26. Qc7 {[%emt 0:00:34]} Be8 {[%emt 0:03:
33]} 27. Qd6 {[%emt 0:02:47]} Rc8 {[%emt 0:01:30]} 28. Qb6 {[%emt 0:02:19]} Ra8
{[%emt 0:00:51]} 29. Qd4 {[%emt 0:00:46]} Nc6 {[%emt 0:00:52]} 1/2-1/2

[Event "Lietuvos BM10-BM18"]
[Site "Vilnius"]
[Date "2021.06.05"]
[Round "6.14"]
[White "Paknyte, Beatrice"]
[Black "Mickunaite, Agne"]
[Result "1-0"]
[WhiteElo "1201"]
[BlackElo "1216"]
[PlyCount "101"]
[EventDate "2021.??.??"]
[TimeControl "90+30"]
[WhiteClock "0:07:05"]
[BlackClock "0:06:04"]

1. e4 {[%emt 0:00:01]} e5 {[%emt 0:00:47]} 2. Nf3 {[%emt 0:00:28]} Nc6 {[%emt
0:00:58]} 3. Bc4 {[%emt 0:00:37]} Bc5 {[%emt 0:01:20]} 4. c3 {[%emt 0:01:35]}
d6 {[%emt 0:02:54]} 5. d4 {[%emt 0:01:42]} exd4 {[%emt 0:01:04]} 6. cxd4 {
[%emt 0:00:17]} Bb4+ {[%emt 0:01:14]} 7. Bd2 {[%emt 0:02:17]} Bxd2+ {[%emt 0:
01:24]} 8. Nbxd2 {[%emt 0:00:11]} a6 {[%emt 0:01:36]} 9. d5 {[%emt 0:04:16]}
Nce7 {[%emt 0:01:39]} 10. h3 {[%emt 0:04:53]} b5 {[%emt 0:03:39]} 11. Bb3 {
[%emt 0:00:31]} Ng6 {[%emt 0:01:58]} 12. a4 {[%emt 0:04:05]} Bd7 {[%emt 0:02:
47]} 13. axb5 {[%emt 0:02:16]} Bxb5 {[%emt 0:01:54]} 14. Ba4 {[%emt 0:01:28]}
Bxa4 {[%emt 0:03:56]} 15. Qxa4+ {[%emt 0:00:09]} Qd7 {[%emt 0:00:10]} 16. Qxd7+
{[%emt 0:01:04]} Kxd7 {[%emt 0:00:11]} 17. O-O {[%emt 0:01:20]} N8e7 {[%emt 0:
01:02]} 18. Nd4 {[%emt 0:02:41]} Nc8 {[%emt 0:02:12]} 19. Ra2 {[%emt 0:02:25]}
Nce7 {[%emt 0:02:23]} 20. Ra4 {[%emt 0:05:54]} Rhb8 {[%emt 0:02:52]} 21. b3 {
[%emt 0:05:26]} c5 {[%emt 0:06:15]} 22. N4f3 {[%emt 0:05:44]} h6 {[%emt 0:02:
14]} 23. Rfa1 {[%emt 0:01:19]} Rb6 {[%emt 0:00:55]} 24. R1a3 {[%emt 0:08:28]}
Nc8 {[%emt 0:03:06]} 25. Nc4 {[%emt 0:02:44]} Rb7 {[%emt 0:04:48]} 26. Nfd2 {
[%emt 0:01:59]} Rba7 {[%emt 0:01:38]} 27. b4 {[%emt 0:03:09]} cxb4 {[%emt 0:01:
19]} 28. Rxb4 {[%emt 0:00:08]} Nge7 {[%emt 0:02:18]} 29. Na5 {[%emt 0:02:31]}
g5 {[%emt 0:03:49]} 30. Ndc4 {[%emt 0:02:05]} f6 {[%emt 0:02:55]} 31. Nb6+ {
[%emt 0:01:59]} Nxb6 {[%emt 0:01:33]} 32. Rxb6 {[%emt 0:00:07]} Nc8 {[%emt 0:
00:59]} 33. Rc6 {[%emt 0:00:41]} f5 {[%emt 0:02:45]} 34. f3 {[%emt 0:02:55]}
fxe4 {[%emt 0:01:07]} 35. fxe4 {[%emt 0:00:08]} Rb8 {[%emt 0:03:37]} 36. Rf3 {
[%emt 0:02:39]} Ne7 {[%emt 0:03:19]} 37. Rc4 {[%emt 0:01:32]} Raa8 {[%emt 0:04:
49]} 38. Rf6 {[%emt 0:02:42]} h5 {[%emt 0:01:04]} 39. Nc6 {[%emt 0:02:34]} Rf8
{[%emt 0:02:19]} 40. Re6 {[%emt 0:03:13]} Nc8 {[%emt 0:02:01]} 41. Rg6 {[%emt
0:02:13]} g4 {[%emt 0:01:59]} 42. hxg4 {[%emt 0:00:40]} hxg4 {[%emt 0:00:02]}
43. Rxg4 {[%emt 0:00:18]} Ke8 {[%emt 0:02:34]} 44. Na5 {[%emt 0:02:11]} Ne7 {
[%emt 0:04:42]} 45. Rh4 {[%emt 0:04:00]} Rg8 {[%emt 0:02:47]} 46. Rh6 {[%emt 0:
01:52]} Kd7 {[%emt 0:01:26]} 47. Nb7 {[%emt 0:01:28]} Nc8 {[%emt 0:02:23]} 48.
Rc6 {[%emt 0:01:49]} Rb8 {[%emt 0:00:19]} 49. Rh7+ {[%emt 0:00:49]} Ke8 {[%emt
0:00:32]} 50. Rcc7 {[%emt 0:02:11]} Kf8 {[%emt 0:04:07]} 51. Rcd7 {[%emt 0:00:
51]} 1-0

[Event "Lietuvos BM10-BM18"]
[Site "Vilnius"]
[Date "2021.06.05"]
[Round "6.16"]
[White "Morkunas, Gustas"]
[Black "Ser, Daniel"]
[Result "1/2-1/2"]
[WhiteElo "1704"]
[BlackElo "1347"]
[PlyCount "45"]
[EventDate "2021.??.??"]
[TimeControl "90+30"]
[WhiteClock "0:44:32"]
[BlackClock "1:17:42"]

1. e4 {[%emt 0:00:01]} e6 {[%emt 0:00:02]} 2. d4 {[%emt 0:00:09]} d5 {[%emt 0:
00:03]} 3. Nc3 {[%emt 0:00:08]} Bb4 {[%emt 0:00:05]} 4. Nge2 {[%emt 0:00:16]}
dxe4 {[%emt 0:00:59]} 5. a3 {[%emt 0:00:27]} Be7 {[%emt 0:00:42]} 6. Nxe4 {
[%emt 0:00:22]} Nf6 {[%emt 0:00:54]} 7. Nxf6+ {[%emt 0:01:17]} Bxf6 {[%emt 0:
00:11]} 8. Be3 {[%emt 0:01:06]} O-O {[%emt 0:00:31]} 9. Qd2 {[%emt 0:07:11]} c5
{[%emt 0:00:30]} 10. c3 {[%emt 0:04:04]} cxd4 {[%emt 0:01:13]} 11. Nxd4 {[%emt
0:03:02]} b6 {[%emt 0:00:39]} 12. Be2 {[%emt 0:01:58]} Bb7 {[%emt 0:00:12]} 13.
O-O {[%emt 0:01:25]} Qe7 {[%emt 0:01:45]} 14. Rad1 {[%emt 0:05:58]} Rd8 {[%emt
0:02:03]} 15. Qc2 {[%emt 0:00:56]} Nc6 {[%emt 0:00:56]} 16. Nf3 {[%emt 0:05:18]
} Rac8 {[%emt 0:01:43]} 17. Nd2 {[%emt 0:07:33]} Nd4 {[%emt 0:03:54]} 18. Bxd4
{[%emt 0:00:15]} Rxd4 {[%emt 0:00:08]} 19. Bf3 {[%emt 0:06:59]} Bxf3 {[%emt 0:
06:41]} 20. Nxf3 {[%emt 0:00:38]} Rxd1 {[%emt 0:00:16]} 21. Rxd1 {[%emt 0:00:
15]} Rd8 {[%emt 0:00:06]} 22. Rxd8+ {[%emt 0:07:32]} Qxd8 {[%emt 0:00:22]} 23.
Qd2 {[%emt 0:05:08]} 1/2-1/2

[Event "Lietuvos BM10-BM18"]
[Site "Vilnius"]
[Date "2021.06.05"]
[Round "6.17"]
[White "Skyrius, Aronas"]
[Black "Misiuk, Martynas"]
[Result "0-1"]
[WhiteElo "1274"]
[BlackElo "1627"]
[PlyCount "58"]
[EventDate "2021.??.??"]
[TimeControl "90+30"]
[WhiteClock "0:08:55"]
[BlackClock "0:58:23"]

1. d4 {[%emt 0:00:03]} Nf6 {[%emt 0:00:48]} 2. c4 {[%emt 0:00:14]} g6 {[%emt 0:
00:38]} 3. Nc3 {[%emt 0:00:15]} d5 {[%emt 0:00:29]} 4. Nf3 {[%emt 0:00:23]} Bg7
{[%emt 0:01:05]} 5. Qb3 {[%emt 0:00:17]} c6 {[%emt 0:02:41]} 6. Bf4 {[%emt 0:
12:28]} dxc4 {[%emt 0:02:07]} 7. Qxc4 {[%emt 0:10:21]} Bf5 {[%emt 0:02:22]} 8.
e3 {[%emt 0:05:43]} O-O {[%emt 0:00:30]} 9. Qb3 {[%emt 0:05:38]} b5 {[%emt 0:
09:48]} 10. Be2 {[%emt 0:04:11]} a5 {[%emt 0:01:07]} 11. O-O {[%emt 0:03:06]}
a4 {[%emt 0:00:21]} 12. Qd1 {[%emt 0:00:32]} Qa5 {[%emt 0:01:12]} 13. a3 {
[%emt 0:03:22]} Nbd7 {[%emt 0:01:11]} 14. Nd2 {[%emt 0:19:26]} Nd5 {[%emt 0:02:
07]} 15. Nxd5 {[%emt 0:02:14]} cxd5 {[%emt 0:00:59]} 16. Bf3 {[%emt 0:01:09]}
Nb6 {[%emt 0:05:05]} 17. Bc7 {[%emt 0:01:06]} Rac8 {[%emt 0:00:53]} 18. Bxb6 {
[%emt 0:02:59]} Qxb6 {[%emt 0:00:16]} 19. Bxd5 {[%emt 0:01:36]} Rfd8 {[%emt 0:
00:38]} 20. Bf3 {[%emt 0:02:52]} Bxd4 {[%emt 0:04:18]} 21. exd4 {[%emt 0:02:27]
} Qxd4 {[%emt 0:00:49]} 22. Be2 {[%emt 0:03:49]} Qxb2 {[%emt 0:01:59]} 23. Nc4
{[%emt 0:07:07]} bxc4 {[%emt 0:00:28]} 24. Qe1 {[%emt 0:01:31]} c3 {[%emt 0:00:
19]} 25. Bf3 {[%emt 0:01:15]} c2 {[%emt 0:00:42]} 26. Qc1 {[%emt 0:00:16]} Qxc1
{[%emt 0:00:33]} 27. Rfxc1 {[%emt 0:00:09]} Rb8 {[%emt 0:00:15]} 28. Kf1 {
[%emt 0:01:17]} Rb1 {[%emt 0:02:26]} 29. Ke1 {[%emt 0:00:28]} Rdb8 {[%emt 0:00:
23]} 0-1

[Event "Lietuvos BM10-BM18"]
[Site "Vilnius"]
[Date "2021.06.05"]
[Round "6.21"]
[White "Norkeliunas, Sarunas"]
[Black "Dijokas, Jokubas"]
[Result "1/2-1/2"]
[WhiteElo "1168"]
[BlackElo "1209"]
[PlyCount "82"]
[EventDate "2021.??.??"]
[TimeControl "90+30"]
[WhiteClock "0:12:05"]
[BlackClock "0:09:10"]

1. e4 {[%emt 0:00:04]} e6 {[%emt 0:00:05]} 2. d4 {[%emt 0:00:15]} d5 {[%emt 0:
00:05]} 3. exd5 {[%emt 0:00:18]} exd5 {[%emt 0:00:05]} 4. Bd3 {[%emt 0:00:25]}
Nf6 {[%emt 0:00:30]} 5. Bf4 {[%emt 0:00:42]} c5 {[%emt 0:01:37]} 6. c3 {[%emt
0:01:56]} Be7 {[%emt 0:01:34]} 7. Nf3 {[%emt 0:01:22]} Bg4 {[%emt 0:01:51]} 8.
Nbd2 {[%emt 0:00:43]} cxd4 {[%emt 0:00:42]} 9. cxd4 {[%emt 0:00:29]} Nc6 {
[%emt 0:00:14]} 10. Qb3 {[%emt 0:02:12]} Qc8 {[%emt 0:07:08]} 11. O-O {[%emt 0:
01:03]} O-O {[%emt 0:03:08]} 12. Rac1 {[%emt 0:01:43]} Bd7 {[%emt 0:12:45]} 13.
Rfe1 {[%emt 0:04:35]} Re8 {[%emt 0:03:35]} 14. Ne5 {[%emt 0:04:21]} a6 {[%emt
0:05:14]} 15. Nf1 {[%emt 0:08:58]} h6 {[%emt 0:06:32]} 16. Ne3 {[%emt 0:04:51]}
Be6 {[%emt 0:03:42]} 17. Rc2 {[%emt 0:08:46]} Nh5 {[%emt 0:06:26]} 18. Bg3 {
[%emt 0:00:42]} Nxg3 {[%emt 0:00:32]} 19. hxg3 {[%emt 0:01:03]} Rd8 {[%emt 0:
00:57]} 20. Qb6 {[%emt 0:08:48]} Rd6 {[%emt 0:02:44]} 21. Rec1 {[%emt 0:00:32]}
Bd8 {[%emt 0:05:44]} 22. Nxc6 {[%emt 0:02:49]} Qd7 {[%emt 0:13:39]} 23. Qb3 {
[%emt 0:05:50]} bxc6 {[%emt 0:02:26]} 24. Qa4 {[%emt 0:01:46]} Qb7 {[%emt 0:00:
39]} 25. b3 {[%emt 0:05:29]} Bd7 {[%emt 0:02:39]} 26. Bf5 {[%emt 0:00:53]} Be8
{[%emt 0:02:44]} 27. Qa3 {[%emt 0:03:26]} Be7 {[%emt 0:00:34]} 28. Qb2 {[%emt
0:02:29]} Rb8 {[%emt 0:01:03]} 29. Re2 {[%emt 0:04:21]} h5 {[%emt 0:02:45]} 30.
Rce1 {[%emt 0:00:42]} Kf8 {[%emt 0:01:35]} 31. Nxd5 {[%emt 0:07:01]} cxd5 {
[%emt 0:01:20]} 32. Rxe7 {[%emt 0:00:23]} Qxe7 {[%emt 0:00:08]} 33. Rxe7 {
[%emt 0:00:11]} Kxe7 {[%emt 0:00:02]} 34. Qe2+ {[%emt 0:00:24]} Kf8 {[%emt 0:
00:50]} 35. Qxh5 {[%emt 0:00:17]} Rh6 {[%emt 0:00:14]} 36. Qf3 {[%emt 0:01:07]}
Rd8 {[%emt 0:00:55]} 37. Qc3 {[%emt 0:01:28]} Rdd6 {[%emt 0:01:02]} 38. Qb4 {
[%emt 0:02:06]} Kg8 {[%emt 0:01:04]} 39. Qb8 {[%emt 0:01:32]} Kf8 {[%emt 0:00:
09]} 40. Qb4 {[%emt 0:02:20]} Kg8 {[%emt 0:02:29]} 41. Qe1 {[%emt 0:00:23]} Kf8
{[%emt 0:02:22]} 1/2-1/2

[Event "Lietuvos BM10-BM18"]
[Site "Vilnius"]
[Date "2021.06.05"]
[Round "6.22"]
[White "Kavalnis, Rytis"]
[Black "Jankevicius, Justas"]
[Result "1-0"]
[WhiteElo "1347"]
[BlackElo "1106"]
[PlyCount "119"]
[EventDate "2021.??.??"]
[TimeControl "90+30"]
[WhiteClock "0:57:13"]
[BlackClock "1:12:15"]

1. e4 {[%emt 0:00:00]} e5 {[%emt 0:00:07]} 2. Nf3 {[%emt 0:00:05]} Nc6 {[%emt
0:00:09]} 3. Bc4 {[%emt 0:00:09]} Bc5 {[%emt 0:00:08]} 4. O-O {[%emt 0:00:09]}
d6 {[%emt 0:00:39]} 5. d3 {[%emt 0:01:13]} h6 {[%emt 0:00:17]} 6. h3 {[%emt 0:
00:16]} Nf6 {[%emt 0:00:12]} 7. Nc3 {[%emt 0:01:40]} O-O {[%emt 0:00:19]} 8.
Na4 {[%emt 0:00:22]} Bb6 {[%emt 0:00:23]} 9. Nxb6 {[%emt 0:00:36]} axb6 {[%emt
0:00:13]} 10. Bb5 {[%emt 0:00:57]} Bd7 {[%emt 0:00:48]} 11. Re1 {[%emt 0:01:25]
} Ne7 {[%emt 0:00:37]} 12. Bxd7 {[%emt 0:00:52]} Qxd7 {[%emt 0:00:10]} 13. b3 {
[%emt 0:00:43]} Ng6 {[%emt 0:00:19]} 14. d4 {[%emt 0:01:01]} exd4 {[%emt 0:01:
18]} 15. Qxd4 {[%emt 0:01:11]} Rfe8 {[%emt 0:00:23]} 16. Bxh6 {[%emt 0:02:28]}
c5 {[%emt 0:01:41]} 17. Qc3 {[%emt 0:00:20]} b5 {[%emt 0:02:31]} 18. Nd2 {
[%emt 0:02:18]} b4 {[%emt 0:00:19]} 19. Qb2 {[%emt 0:00:15]} b5 {[%emt 0:00:56]
} 20. Bg5 {[%emt 0:00:18]} Nh7 {[%emt 0:00:56]} 21. Be3 {[%emt 0:00:39]} Ra6 {
[%emt 0:00:22]} 22. c3 {[%emt 0:01:18]} bxc3 {[%emt 0:00:29]} 23. Qxc3 {[%emt
0:00:14]} b4 {[%emt 0:00:05]} 24. Qc2 {[%emt 0:00:17]} Rea8 {[%emt 0:00:21]}
25. Nc4 {[%emt 0:00:23]} Qc6 {[%emt 0:02:55]} 26. Red1 {[%emt 0:00:32]} Rd8 {
[%emt 0:00:30]} 27. Rd2 {[%emt 0:01:08]} Nh4 {[%emt 0:02:20]} 28. f3 {[%emt 0:
01:21]} d5 {[%emt 0:00:51]} 29. exd5 {[%emt 0:00:44]} Rxd5 {[%emt 0:00:21]} 30.
Rxd5 {[%emt 0:00:19]} Qxd5 {[%emt 0:00:16]} 31. Rd1 {[%emt 0:00:25]} Qh5 {
[%emt 0:02:07]} 32. Rd8+ {[%emt 0:00:28]} Nf8 {[%emt 0:00:15]} 33. Rc8 {[%emt
0:05:49]} Rg6 {[%emt 0:00:19]} 34. Qd3 {[%emt 0:12:12]} Nxf3+ {[%emt 0:00:58]}
35. Kh1 {[%emt 0:03:39]} Qh4 {[%emt 0:05:18]} 36. Bf2 {[%emt 0:06:37]} Qxf2 {
[%emt 0:02:52]} 37. Rxf8+ {[%emt 0:00:18]} Kh7 {[%emt 0:01:04]} 38. Qxf3 {
[%emt 0:00:15]} Qe1+ {[%emt 0:02:35]} 39. Kh2 {[%emt 0:00:18]} Qe7 {[%emt 0:00:
20]} 40. Rxf7 {[%emt 0:00:30]} Qe6 {[%emt 0:00:47]} 41. Qh5+ {[%emt 0:02:38]}
Kg8 {[%emt 0:00:18]} 42. Qf5 {[%emt 0:00:37]} Qxf7 {[%emt 0:00:51]} 43. Qxf7+ {
[%emt 0:00:14]} Kxf7 {[%emt 0:00:14]} 44. Ne5+ {[%emt 0:00:09]} Kf6 {[%emt 0:
00:14]} 45. Nxg6 {[%emt 0:00:09]} Kxg6 {[%emt 0:00:06]} 46. Kg3 {[%emt 0:00:11]
} Kf5 {[%emt 0:00:13]} 47. Kf3 {[%emt 0:00:19]} Ke5 {[%emt 0:00:43]} 48. Ke3 {
[%emt 0:00:26]} g6 {[%emt 0:05:55]} 49. g3 {[%emt 0:00:17]} Kd5 {[%emt 0:00:31]
} 50. Kd3 {[%emt 0:00:19]} Ke5 {[%emt 0:00:13]} 51. Kc4 {[%emt 0:02:03]} Ke4 {
[%emt 0:00:15]} 52. Kxc5 {[%emt 0:00:08]} Kf3 {[%emt 0:00:06]} 53. Kxb4 {[%emt
0:00:07]} Kxg3 {[%emt 0:00:07]} 54. a4 {[%emt 0:00:08]} Kxh3 {[%emt 0:00:05]}
55. a5 {[%emt 0:00:11]} g5 {[%emt 0:00:05]} 56. a6 {[%emt 0:00:05]} g4 {[%emt
0:00:04]} 57. a7 {[%emt 0:00:10]} g3 {[%emt 0:00:04]} 58. a8=Q {[%emt 0:00:11]}
g2 {[%emt 0:00:04]} 59. Kc4 {[%emt 0:00:51]} g1=Q {[%emt 0:00:17]} 60. Qh8+ {
[%emt 0:00:08]} 1-0

[Event "Lietuvos BM10-BM18"]
[Site "Vilnius"]
[Date "2021.06.05"]
[Round "6.23"]
[White "Remeika, Vytenis"]
[Black "Mikalajunas, Gytis"]
[Result "1-0"]
[WhiteElo "1143"]
[BlackElo "1042"]
[PlyCount "61"]
[EventDate "2021.??.??"]
[TimeControl "90+30"]
[WhiteClock "1:08:06"]
[BlackClock "1:12:41"]

1. c4 {[%emt 0:00:05]} e5 {[%emt 0:00:23]} 2. Nc3 {[%emt 0:00:07]} Nf6 {[%emt
0:00:21]} 3. g3 {[%emt 0:00:11]} Nc6 {[%emt 0:00:40]} 4. Bg2 {[%emt 0:00:33]}
b6 {[%emt 0:01:11]} 5. e3 {[%emt 0:02:09]} Bc5 {[%emt 0:00:34]} 6. Nge2 {[%emt
0:01:54]} Bb7 {[%emt 0:00:47]} 7. d4 {[%emt 0:00:32]} exd4 {[%emt 0:00:33]} 8.
exd4 {[%emt 0:00:12]} Bb4 {[%emt 0:02:16]} 9. O-O {[%emt 0:02:08]} Qe7 {[%emt
0:00:53]} 10. Bg5 {[%emt 0:00:45]} O-O-O {[%emt 0:00:49]} 11. a3 {[%emt 0:01:
39]} Bxc3 {[%emt 0:00:23]} 12. Nxc3 {[%emt 0:00:10]} h6 {[%emt 0:00:57]} 13.
Be3 {[%emt 0:01:10]} d6 {[%emt 0:03:11]} 14. b4 {[%emt 0:01:11]} Rd7 {[%emt 0:
03:43]} 15. Bh3 {[%emt 0:00:23]} Qd8 {[%emt 0:01:10]} 16. Bf4 {[%emt 0:04:29]}
Kb8 {[%emt 0:00:58]} 17. Bxd7 {[%emt 0:00:16]} Qxd7 {[%emt 0:00:08]} 18. d5 {
[%emt 0:00:11]} Nd8 {[%emt 0:00:22]} 19. Kg2 {[%emt 0:01:28]} g5 {[%emt 0:01:
31]} 20. Be3 {[%emt 0:00:14]} Rg8 {[%emt 0:01:32]} 21. a4 {[%emt 0:00:25]} h5 {
[%emt 0:00:40]} 22. a5 {[%emt 0:00:43]} h4 {[%emt 0:00:32]} 23. axb6 {[%emt 0:
00:29]} cxb6 {[%emt 0:00:24]} 24. Qa4 {[%emt 0:00:26]} h3+ {[%emt 0:02:46]} 25.
Kg1 {[%emt 0:01:06]} Qf5 {[%emt 0:01:41]} 26. Qxa7+ {[%emt 0:00:17]} Kc8 {
[%emt 0:00:25]} 27. Rfc1 {[%emt 0:07:04]} Ng4 {[%emt 0:01:49]} 28. Qxb6 {[%emt
0:00:55]} Kd7 {[%emt 0:00:39]} 29. Nb5 {[%emt 0:06:15]} Nxe3 {[%emt 0:01:16]}
30. Qxd6+ {[%emt 0:00:15]} Ke8 {[%emt 0:00:17]} 31. Nc7# {[%emt 0:00:10]} 1-0